bitfinex-derivatives/quotes_ETHF0:USTF0_20260121
["timestamp","ask_amount","ask_price","bid_price","bid_amount"]
[1769005431213,0.00240626,2976.8,2975.4,4.39244723]
[1769005431422,0.16806,2978.2,2976.3,4.39244723]
[1769005431615,2.03667537,2978.2,2976.4,4.39244723]
[1769005431814,3.69508761,2978.0,2976.4,0.87384936]
[1769005432226,3.69508761,2978.0,2976.2,0.87384936]
[1769005432528,3.69880878,2978.0,2976.3,0.87384936]
[1769005433317,0.17179117,2978.0,2976.3,4.39244723]
[1769005433919,0.00372117,2978.0,2976.5,3.51859787]
[1769005434628,0.00372117,2978.0,2977.0,0.00503829]
[1769005435129,0.00372117,2978.0,2976.4,0.87384936]
[1769005435332,0.00372117,2978.0,2976.9,3.51859787]
[1769005435825,0.00372117,2978.0,2976.9,4.39244723]
[1769005436130,0.00372117,2978.0,2976.9,3.51859787]
[1769005436326,0.00372117,2978.0,2976.9,4.39244723]
[1769005437022,0.00372117,2978.0,2976.9,0.87384936]
[1769005437223,0.00372117,2978.0,2976.6,0.87384936]
[1769005437526,0.00372117,2978.0,2976.6,4.39244723]
[1769005437729,0.00372117,2978.0,2976.8,3.51859787]
[1769005438027,0.00372117,2978.0,2977.0,0.00503829]
[1769005439829,0.17179117,2978.0,2977.0,0.00503829]
[1769005440532,0.1681,2977.6,2976.4,0.87384936]
[1769005440729,0.1681,2977.6,2976.2,0.00415012]
[1769005440730,3.60140033,2977.7,2976.2,0.00415012]
[1769005440921,0.00503829,2977.8,2976.2,0.00415012]
[1769005441120,0.00503829,2977.8,2976.2,3.58598254]
[1769005441334,0.00503829,2977.8,2976.5,0.87384936]
[1769005441734,0.00503829,2977.8,2976.4,4.45568178]
[1769005442032,0.16809,2977.7,2976.3,0.87384936]
[1769005442230,0.16809,2977.7,2976.2,1.16928261]
[1769005442231,0.16809,2977.7,2976.2,0.87799948]
[1769005442528,5.64311399,2977.8,2976.2,0.00415012]
[1769005442733,0.16812,2977.2,2976.2,0.00415012]
[1769005442932,0.16813,2977.0,2975.6,0.87384936]
[1769005443125,0.16814,2976.8,2975.4,0.87384936]
[1769005443325,0.16814,2976.8,2975.3,0.87384936]
[1769005443828,3.76950033,2977.5,2975.5,4.45568178]
[1769005444030,0.1681,2977.5,2975.9,0.87384936]
[1769005444335,0.17179117,2978.0,2976.3,0.87384936]
[1769005445134,0.17179117,2978.0,2976.2,1.16513249]
[1769005445135,0.17179117,2978.0,2976.4,0.87384936]
[1769005445433,0.00372117,2978.0,2976.7,0.87384936]
[1769005446929,0.00372117,2978.0,2976.7,4.45568178]
[1769005447235,0.00372117,2978.0,2976.8,0.87384936]
[1769005447430,0.00372117,2978.0,2976.7,0.87384936]
[1769005448334,0.00372117,2978.0,2977.1,0.00503829]
[1769005448540,0.1681,2977.6,2976.5,0.87384936]
[1769005449137,0.1681,2977.6,2975.6,3.58183242]
[1769005449138,0.16813,2976.9,2975.6,1.75725255]
[1769005449435,0.16813,2976.9,2975.5,3.58581289]
[1769005449837,0.00503829,2976.5,2975.5,3.58581289]
[1769005450224,0.00503829,2976.5,2975.5,4.75094538]
[1769005451338,0.1681,2977.5,2975.7,3.58183242]
[1769005451535,3.60140033,2977.7,2975.8,1.16513249]
[1769005451836,3.60140033,2977.7,2975.7,0.00503829]
[1769005452038,0.16814,2976.7,2975.7,0.00503829]
[1769005453536,3.60140033,2977.1,2975.7,0.00503829]
[1769005454130,3.60140033,2975.5,2973.1,2.34112711]
[1769005454327,0.16822,2975.4,2973.0,2.34112711]
[1769005454533,2.03622,2975.4,2972.9,2.34112711]
[1769005454738,0.16823,2975.2,2972.9,2.34112711]
[1769005455046,1.868,2975.1,2973.0,2.03667537]
[1769005455235,0.0025404,2975.2,2973.1,2.34112711]
[1769005455537,0.0025404,2975.2,2973.9,0.00503829]
[1769005455838,3.46332782,2975.2,2973.9,0.00503829]
[1769005456031,2.03667537,2974.7,2972.9,0.00350377]
[1769005456231,0.16825,2974.8,2972.9,3.70132834]
[1769005457541,0.00503829,2974.1,2972.9,3.70132834]
[1769005457837,0.0025404,2975.2,2973.6,3.70286286]
[1769005458136,0.16823,2975.1,2973.6,0.00503829]
[1769005458838,3.46078742,2975.1,2973.6,0.00503829]
[1769005459043,0.16827,2974.5,2972.9,0.00350377]
[1769005459236,1.869,2974.4,2972.9,0.00350377]
[1769005460340,1.869,2974.3,2972.9,0.00350377]
[1769005460835,1.869,2974.2,2972.9,0.00350377]
[1769005461641,5.49807742,2974.1,2972.9,0.00350377]
[1769005461935,2.03667537,2973.3,2971.5,3.69782457]
[1769005462242,3.62907742,2974.1,2971.5,3.69782457]
[1769005462439,5.49746279,2973.8,2971.5,3.69782457]
[1769005462634,3.46078742,2973.8,2971.5,3.69782457]
[1769005462939,0.1683,2973.9,2971.5,3.70108772]
[1769005462940,1.869,2973.7,2971.5,3.70108772]
[1769005463441,5.32978742,2973.7,2971.5,3.70108772]
[1769005463641,3.46078742,2973.6,2971.5,3.70108772]
[1769005464040,1.869,2973.5,2971.5,3.70108772]
[1769005464546,3.46078742,2973.6,2971.5,3.70108772]
[1769005464738,1.87,2973.5,2971.5,3.70108772]
[1769005466641,0.16832,2973.6,2971.5,3.70108772]
[1769005466844,1.87,2973.5,2971.5,3.70108772]
[1769005467242,0.16832,2973.6,2971.5,3.70108772]
[1769005467446,1.87,2973.5,2971.5,3.70108772]
[1769005468950,1.87,2973.4,2971.5,3.70108772]
[1769005469353,3.46078742,2973.9,2971.5,3.70108772]
[1769005469545,0.16828,2974.2,2971.5,3.70108772]
[1769005470056,0.16828,2974.2,2971.8,3.69782457]
[1769005470253,1.87,2974.1,2971.8,3.69782457]
[1769005470442,0.16828,2974.2,2971.8,3.69782457]
[1769005470642,2.20492537,2974.8,2972.1,3.69782457]
[1769005470842,0.16825,2974.8,2972.4,3.86620457]
[1769005471042,5.33078742,2974.8,2972.4,3.86620457]
[1769005471245,0.16826,2974.7,2972.4,3.86620457]
[1769005471454,0.16826,2974.6,2972.4,3.69782457]
[1769005471952,3.62904742,2974.6,2972.4,3.69782457]
[1769005473261,3.62905742,2974.5,2972.4,3.69782457]
[1769005473450,3.62905742,2974.4,2972.4,3.69782457]
[1769005474751,0.16827,2974.4,2972.4,3.69782457]
[1769005474955,2.03827,2974.4,2972.4,3.69782457]
[1769005476048,3.46078742,2975.0,2972.6,3.69782457]
[1769005476449,3.46078742,2975.0,2972.6,3.86619457]
[1769005476659,1.87,2975.0,2973.1,3.69782457]
[1769005476959,1.87,2975.0,2973.4,3.69782457]
[1769005477752,0.16821,2975.6,2973.4,3.86615457]
[1769005478055,0.16821,2975.6,2973.6,3.69782457]
[1769005478258,3.46078742,2976.2,2973.6,3.87004366]
[1769005478460,1.87,2975.9,2973.6,3.87004366]
[1769005478750,1.87,2975.9,2974.1,0.00503829]
[1769005478956,2.03819,2975.9,2974.1,0.00503829]
[1769005479161,3.72688955,2976.2,2974.1,0.00503829]
[1769005479358,1.87,2976.0,2974.1,0.00503829]
[1769005480151,3.72688955,2976.2,2974.1,0.00503829]
[1769005480358,3.46078742,2975.8,2974.1,0.00503829]
[1769005480652,0.1682,2975.7,2974.1,0.00503829]
[1769005485169,0.1682,2975.7,2974.1,3.70286286]
[1769005486872,0.16817,2976.3,2974.1,3.70286286]
[1769005487080,0.16817,2976.3,2974.1,3.87115286]
[1769005487371,3.41707724,2976.8,2974.5,3.55936054]
[1769005487578,3.41707724,2976.8,2974.5,3.72762054]
[1769005487775,0.16813,2977.0,2974.7,3.55936054]
[1769005488081,0.00340313,2977.0,2974.9,3.55936054]
[1769005488876,0.00340313,2977.0,2975.7,0.00503829]
[1769005489075,0.00340313,2977.0,2975.7,0.00887364]
[1769005489877,3.58861037,2977.0,2975.7,0.00887364]
[1769005490077,0.17153313,2977.0,2975.7,0.00887364]
[1769005491275,0.00340313,2977.0,2975.7,0.00887364]
[1769005491678,0.00340313,2977.0,2975.7,3.56823418]
[1769005492174,0.00503829,2976.6,2975.7,3.56823418]
[1769005492875,0.00340313,2977.0,2975.7,3.56823418]
[1769005495586,3.41707724,2978.5,2976.1,3.55936054]
[1769005495974,3.41707724,2978.5,2976.0,0.16818]
[1769005495975,3.41707724,2978.5,2977.0,0.00503829]
[1769005496986,3.41963557,2978.5,2977.0,0.00503829]
[1769005497181,0.16805,2978.4,2977.0,0.00503829]
[1769005497482,3.58512724,2978.4,2977.0,0.00503829]
[1769005497687,0.16807,2978.1,2977.0,0.00503829]
[1769005498380,5.28607724,2978.4,2977.0,0.00503829]
[1769005498381,0.16808,2977.9,2977.0,0.00503829]
[1769005498577,3.69266178,2977.8,2976.0,3.55936054]
[1769005498880,0.16805,2978.4,2976.0,3.55936054]
[1769005499085,3.52458178,2978.4,2976.0,3.55936054]
[1769005499384,0.16806,2978.2,2976.0,3.55936054]
[1769005500284,3.52458178,2978.4,2976.0,3.72754054]
[1769005500587,0.00255833,2978.5,2976.3,3.4890188]
[1769005501583,3.69267178,2977.6,2975.8,3.4890188]
[1769005501778,3.52458178,2977.6,2975.7,0.00383535]
[1769005501982,0.1681,2977.5,2975.7,0.00383535]
[1769005502184,0.1681,2977.5,2976.4,0.00503829]
[1769005502689,3.69269178,2977.3,2975.7,0.00383535]
[1769005503687,0.00503829,2977.7,2975.7,0.00383535]
[1769005503884,0.00503829,2977.7,2976.1,3.4890188]
[1769005504779,0.1681,2977.4,2975.7,0.00383535]
[1769005505291,0.1681,2977.4,2975.7,3.49285415]
[1769005506386,0.1681,2977.4,2975.7,0.00383535]
[1769005506691,3.69269178,2977.3,2975.7,0.00383535]
[1769005507186,0.16817,2976.3,2974.1,3.4890188]
[1769005507887,3.69277178,2976.0,2974.1,3.4890188]
[1769005508080,3.6969754,2976.0,2974.1,3.49225858]
[1769005508485,0.00503829,2975.3,2974.1,3.49225858]
[1769005509083,0.00420362,2976.0,2974.1,5.23054696]
[1769005509282,0.00420362,2976.0,2974.2,3.4890188]
[1769005510181,3.5287854,2976.0,2974.1,0.00323978]
[1769005510495,0.00503829,2975.4,2974.1,0.00323978]
[1769005511489,0.16824,2975.1,2973.0,3.4890188]
[1769005511684,3.69282178,2975.1,2973.0,3.4890188]
[1769005512495,0.16824,2975.1,2973.0,3.49299728]
[1769005513402,0.00503829,2975.4,2973.0,3.49299728]
[1769005514195,0.00503829,2975.4,2973.1,3.4890188]
[1769005514387,0.00503829,2975.4,2973.2,3.4890188]
[1769005514594,0.00503829,2975.4,2973.3,5.22730718]
[1769005514789,0.00503829,2975.4,2973.4,3.4890188]
[1769005515387,3.58303503,2975.4,2973.4,3.4890188]
[1769005516097,3.58303503,2975.4,2973.0,0.00397848]
[1769005516484,3.74622674,2975.1,2973.0,0.00397848]
[1769005517890,0.00503829,2975.4,2973.0,3.59319226]
[1769005518787,0.00503829,2975.4,2973.7,3.58921378]
[1769005519796,3.57799674,2975.2,2973.0,0.00397848]
[1769005520001,3.74625674,2974.7,2973.0,0.00397848]
[1769005520294,3.57799674,2974.3,2973.0,0.00397848]
[1769005520695,3.74628674,2974.2,2973.0,0.00397848]
[1769005521499,0.00503829,2973.9,2973.0,0.00397848]
[1769005521797,0.00868927,2973.9,2973.0,0.00397848]
[1769005522700,3.74621674,2975.4,2973.0,3.59319226]
[1769005522902,3.57799674,2975.2,2973.0,3.59319226]
[1769005523202,3.74622674,2975.2,2973.0,3.59319226]
[1769005523697,3.74913842,2975.2,2973.0,3.59319226]
[1769005524199,3.74913842,2975.2,2973.8,0.00503829]
[1769005524593,0.16823,2975.1,2973.8,0.00503829]
[1769005524997,0.16823,2975.1,2973.0,3.59319226]
[1769005524998,3.74624674,2974.8,2973.0,0.00397848]
[1769005525197,0.00503829,2974.7,2973.0,0.00397848]
[1769005525493,0.16826,2974.6,2973.0,0.00397848]
[1769005527299,1.87,2974.5,2973.0,0.00397848]
[1769005528206,0.16826,2974.6,2973.0,0.00397848]
[1769005528397,1.87,2974.4,2973.0,0.00397848]
[1769005528707,0.16829,2974.2,2973.0,0.00397848]
[1769005529007,3.74628674,2974.2,2973.0,0.00397848]
[1769005529498,3.57799674,2974.0,2973.0,0.00397848]
[1769005529902,3.74629674,2974.0,2973.0,0.00397848]
[1769005530506,3.57799674,2974.0,2971.6,1.16393613]
[1769005530693,3.74631674,2973.6,2971.5,3.58921378]
[1769005530898,1.87,2973.5,2971.5,3.58921378]
[1769005531405,0.00503829,2972.8,2971.5,3.59274382]
[1769005531700,0.00902598,2972.8,2971.5,3.59274382]
[1769005532092,3.74628674,2974.2,2971.7,3.58921378]
[1769005532402,0.1683,2974.0,2971.7,3.58921378]
[1769005532598,3.74629674,2973.9,2971.7,3.58921378]
[1769005532906,3.74626674,2974.5,2971.7,3.58921378]
[1769005533097,2.03827,2974.4,2971.9,3.58921378]
[1769005533604,2.03827,2974.4,2972.8,0.00504685]
[1769005533811,0.16828,2974.3,2972.8,0.00504685]
[1769005534004,3.57799674,2973.8,2971.9,3.58921378]
[1769005534504,1.87,2973.7,2971.9,3.58921378]
[1769005534901,1.87,2973.6,2971.9,3.58921378]
[1769005535303,3.57799674,2973.8,2971.9,3.58921378]
[1769005535608,1.87,2973.7,2971.9,3.58921378]
[1769005536001,1.87,2973.6,2971.9,3.58921378]
[1769005536602,3.74632674,2973.4,2971.5,0.00353004]
[1769005536806,1.87,2973.5,2971.5,0.00353004]
[1769005536807,3.74634674,2973.1,2971.5,0.00353004]
[1769005537298,3.74630674,2973.7,2971.6,3.58921378]
[1769005537498,1.87,2973.6,2971.6,3.58921378]
[1769005538106,3.74632674,2973.4,2971.5,0.00353004]
[1769005538405,0.16837,2972.8,2971.5,0.00353004]
[1769005538611,3.74636674,2972.8,2971.5,0.00353004]
[1769005538802,0.1684,2972.2,2970.7,1.16393613]
[1769005539001,1.87,2972.1,2970.4,3.58921378]
[1769005539201,5.62072106,2972.3,2970.4,3.58921378]
[1769005539506,1.87,2972.2,2970.4,3.58921378]
[1769005539807,0.00241953,2972.2,2970.6,3.58921378]
[1769005540110,0.00241953,2972.2,2970.8,4.75314991]
[1769005540610,0.00504685,2971.7,2970.8,4.75314991]
[1769005541411,2.04272432,2973.7,2971.2,3.58921378]
[1769005541610,1.871,2973.6,2971.5,3.58921378]
[1769005542412,1.87501242,2973.6,2971.5,3.58921378]
[1769005542613,0.00504685,2972.8,2971.5,3.58921378]
[1769005543115,0.00504685,2972.8,2971.0,4.75314991]
[1769005543513,1.871,2972.7,2971.1,3.58921378]
[1769005543809,0.00504685,2972.8,2971.3,3.58921378]
[1769005547313,0.00504685,2972.8,2970.2,1.16393613]
[1769005547314,2.04272432,2971.8,2970.2,1.16393613]
[1769005547515,2.04272432,2971.8,2970.0,1.16393613]
[1769005547812,5.52482081,2972.0,2969.8,4.91223413]
[1769005548208,3.65382081,2971.8,2969.8,3.579768]
[1769005548826,1.871,2972.0,2969.2,3.579768]
[1769005548827,5.86499513,2971.3,2969.2,3.579768]
[1769005549005,3.65382081,2971.2,2969.2,3.579768]
[1769005549211,0.00504685,2970.5,2969.2,3.579768]
[1769005549807,0.00821324,2970.5,2969.2,3.58394433]
[1769005550409,0.00821324,2970.5,2968.1,3.579768]
[1769005550410,2.04272432,2970.1,2968.1,3.579768]
[1769005550611,1.871,2970.4,2968.2,3.579768]
[1769005551624,0.00821324,2970.5,2968.4,3.579768]
[1769005552522,0.00821324,2970.5,2968.5,0.16861]
[1769005552715,0.00821324,2970.5,2968.6,3.748368]
[1769005553219,0.00821324,2970.5,2968.8,3.579768]
[1769005554415,0.00821324,2970.5,2969.2,3.579768]
[1769005557720,0.16843,2971.7,2969.2,3.579768]
[1769005558113,0.16843,2971.7,2969.2,3.748328]
[1769005558318,5.67707046,2971.4,2969.2,3.748328]
[1769005558726,0.16843,2971.6,2969.2,3.748328]
[1769005558926,0.00431091,2971.4,2969.6,3.7057474]
[1769005559127,0.00431091,2971.4,2970.0,3.71079425]
[1769005560924,0.00431091,2971.4,2970.2,3.7057474]
[1769005561127,3.63434614,2972.3,2970.2,3.7057474]
[1769005561328,2.04272432,2971.9,2970.0,0.00504685]
[1769005561729,5.67707046,2971.4,2970.0,0.00504685]
[1769005561925,3.63939299,2971.2,2969.2,3.7057474]
[1769005562122,3.64325033,2971.2,2969.2,1.16393613]
[1769005562427,0.16847,2971.0,2968.9,3.7057474]
[1769005562628,0.16847,2971.0,2968.3,1.75629734]
[1769005562629,5.68597465,2971.2,2969.1,3.7057474]
[1769005562933,0.00890419,2971.2,2969.2,0.16856]
[1769005563127,0.00890419,2971.2,2969.3,3.7057474]
[1769005563526,5.68597465,2971.2,2969.3,3.7057474]
[1769005563731,2.04272432,2970.7,2968.7,3.7057474]
[1769005564027,3.63434614,2971.1,2968.7,3.7057474]
[1769005564228,3.63434614,2971.1,2968.9,3.7057474]
[1769005565436,3.63434614,2971.1,2968.7,1.16393613]
[1769005565437,2.04272432,2970.7,2968.7,3.7057474]
[1769005565730,2.04272432,2970.1,2968.2,3.70994955]
[1769005565929,3.63434614,2970.4,2968.2,3.70994955]
[1769005566229,3.63434614,2970.9,2968.4,3.8743574]
[1769005566532,3.63434614,2970.9,2969.0,0.00504685]
[1769005567128,3.80281614,2970.9,2969.0,0.00504685]
[1769005567329,3.63434614,2970.5,2969.0,0.00504685]
[1769005567828,2.04272432,2970.6,2969.0,0.00504685]
[1769005568624,5.67707046,2970.6,2969.0,0.00504685]
[1769005570331,0.16847,2971.0,2969.0,0.00504685]
[1769005570533,0.16847,2971.0,2969.0,3.71079425]
[1769005571129,3.80281614,2971.0,2969.0,3.71079425]
[1769005573434,1.872,2971.1,2969.0,3.71079425]
[1769005574038,1.872,2971.1,2969.2,3.7057474]
[1769005575337,1.872,2971.1,2969.4,3.7057474]
[1769005576135,1.872,2971.1,2969.4,4.86968353]
[1769005576338,1.872,2971.1,2969.7,3.42230377]
[1769005576930,1.872,2971.1,2969.5,1.75629734]
[1769005576931,3.66394976,2971.0,2969.5,1.16393613]
[1769005577134,3.83241976,2971.0,2969.4,1.16393613]
[1769005577340,0.16848,2970.8,2969.4,1.16393613]
[1769005577541,2.04272432,2970.6,2969.3,1.16393613]
[1769005577741,2.04272432,2970.6,2969.1,1.75629734]
[1769005578039,5.70442976,2970.8,2969.3,3.42230377]
[1769005578040,1.872,2970.8,2969.3,3.42230377]
[1769005578241,1.872,2970.8,2969.3,1.75629734]
[1769005578547,1.872,2970.8,2969.5,3.42230377]
[1769005578952,5.70667408,2971.1,2969.3,1.75629734]
[1769005579650,3.66394976,2971.0,2969.3,1.75629734]
[1769005579842,2.04272432,2971.1,2969.2,1.75629734]
[1769005579843,3.83241976,2970.9,2969.2,1.75629734]
[1769005580049,3.83241976,2970.9,2969.2,5.17860111]
[1769005580248,3.83241976,2970.9,2969.3,1.75629734]
[1769005580647,2.04272432,2971.1,2969.4,1.75629734]
[1769005580849,0.00385734,2971.2,2969.5,3.42230377]
[1769005581050,0.00385734,2971.2,2969.6,5.17860111]
[1769005581252,0.00385734,2971.2,2969.9,3.42230377]
[1769005581457,0.00385734,2971.2,2969.8,1.75629734]
[1769005581653,3.66394976,2971.0,2969.6,1.75629734]
[1769005581858,3.66394976,2971.0,2969.5,1.75629734]
[1769005582562,0.00385734,2971.2,2969.5,5.17860111]
[1769005584655,0.00385734,2971.2,2969.6,1.75629734]
[1769005584851,0.00385734,2971.2,2969.7,5.17860111]
[1769005585052,0.00385734,2971.2,2969.9,3.42230377]
[1769005585257,0.00385734,2971.2,2969.9,5.17860111]
[1769005585463,0.00385734,2971.2,2970.0,3.42230377]
[1769005585761,0.00385734,2971.2,2969.7,1.75629734]
[1769005586163,0.00385734,2971.2,2969.8,3.42230377]
[1769005586352,0.00385734,2971.2,2969.9,5.17860111]
[1769005586559,0.00385734,2971.2,2970.0,3.42230377]
[1769005587760,0.16839,2972.3,2970.4,3.42230377]
[1769005587956,3.66394976,2972.7,2970.6,3.42230377]
[1769005588163,0.26870669,2972.8,2970.8,3.42230377]
[1769005588464,0.16836,2972.9,2970.8,3.42230377]
[1769005588657,0.16836,2972.9,2971.0,3.42230377]
[1769005588859,0.17253455,2972.9,2971.0,3.42230377]
[1769005589058,3.83648431,2972.9,2971.0,3.42230377]
[1769005589359,2.04272432,2972.8,2971.0,3.42230377]
[1769005591161,5.70667408,2972.3,2970.8,0.0029946]
[1769005594068,3.83234976,2972.2,2970.0,1.75629734]
[1769005594270,5.53594976,2972.1,2970.0,3.42230377]
[1769005594465,1.872,2972.1,2970.1,3.42230377]
[1769005595367,1.872,2972.1,2970.1,3.42661478]
[1769005595561,3.66394976,2972.0,2970.1,3.42661478]
[1769005596968,2.0404,2972.1,2970.1,0.00431101]
[1769005596969,0.16843,2971.6,2970.1,0.00431101]
[1769005597174,3.83237976,2971.6,2970.1,0.00431101]
[1769005597679,2.04043,2971.6,2970.1,0.00431101]
[1769005597971,2.04043,2971.6,2970.1,3.42661478]
[1769005598974,1.872,2971.9,2970.1,3.42661478]
[1769005599877,1.872,2971.9,2970.2,3.42230377]
[1769005600070,1.872,2971.9,2970.3,3.42230377]
[1769005604983,0.16838,2972.6,2970.4,1.75629734]
[1769005605186,0.16838,2972.6,2970.7,3.42230377]
[1769005605582,0.16838,2972.6,2970.7,5.17860111]
[1769005605779,3.7628651,2972.3,2970.6,1.75629734]
[1769005606082,3.7628651,2972.3,2970.3,3.42065121]
[1769005606979,0.16841,2972.0,2970.3,3.42065121]
[1769005607278,0.16842,2971.9,2970.3,3.42065121]
[1769005607477,3.9312951,2971.7,2970.1,0.00431101]
[1769005607679,5.8032951,2971.7,2970.1,0.00431101]
[1769005607878,0.00504685,2971.4,2970.1,0.00431101]
[1769005613983,0.00504685,2971.4,2970.1,3.42496222]
[1769005618283,0.00504685,2971.4,2970.1,0.00431101]
[1769005619592,0.00504685,2971.4,2970.1,3.5023912]
[1769005619885,0.00504685,2971.4,2970.1,5.25868854]
[1769005620689,0.00504685,2971.4,2970.1,1.76060835]
[1769005621586,0.00504685,2971.4,2970.1,0.00431101]
[1769005621587,3.87553519,2971.4,2970.1,0.00431101]
[1769005621995,0.16845,2971.3,2970.1,0.00431101]
[1769005622488,0.16845,2971.2,2970.1,0.00431101]
[1769005623192,0.00504685,2971.4,2970.1,0.00431101]
[1769005624296,0.00504685,2971.4,2970.1,3.5023912]
[1769005626998,3.87553519,2971.4,2970.1,0.00431101]
[1769005627196,0.16845,2971.3,2970.1,0.00431101]
[1769005627387,3.87048834,2971.3,2970.1,0.00431101]
[1769005629290,0.16845,2971.3,2970.1,0.00431101]
[1769005629800,1.87704685,2971.4,2970.1,0.00431101]
[1769005630705,1.87704685,2971.4,2970.1,3.5023912]
[1769005633591,1.87704685,2971.4,2969.1,0.16857]
[1769005633592,3.87049834,2971.1,2969.3,2.33868201]
[1769005633895,0.16846,2971.1,2969.2,3.49808019]
[1769005634098,0.16846,2971.1,2969.3,3.49808019]
[1769005634303,3.87049834,2971.1,2969.3,3.49808019]
[1769005634501,3.87049834,2971.1,2969.3,3.50044116]
[1769005634698,0.00504685,2971.4,2969.3,3.50044116]
[1769005634902,0.80875977,2971.3,2969.3,3.50044116]
[1769005635203,0.80875977,2971.2,2969.3,3.50044116]
[1769005635406,0.00504685,2971.4,2969.4,5.90364768]
[1769005635591,0.80901977,2971.3,2969.5,3.56496567]
[1769005635899,3.70629438,2971.4,2969.5,3.56496567]
[1769005636099,4.51030841,2971.3,2969.5,3.56496567]
[1769005636302,0.80906088,2971.2,2969.5,3.56496567]
[1769005636702,3.70124753,2971.3,2969.5,3.56496567]
[1769005637004,0.80911764,2971.2,2969.5,3.56496567]
[1769005637302,3.86969753,2971.3,2969.5,3.56496567]
[1769005637503,0.80916043,2971.2,2969.5,3.56496567]
[1769005637703,3.86969753,2971.3,2969.5,3.56496567]
[1769005637905,0.80916263,2971.2,2969.5,3.56496567]
[1769005638094,3.86969753,2971.3,2969.5,3.56496567]
[1769005638294,0.80912242,2971.2,2969.5,3.56496567]
[1769005638494,3.86969753,2971.3,2969.5,3.56496567]
[1769005638699,0.80912427,2971.2,2969.5,3.56496567]
[1769005638897,3.86969753,2971.3,2969.5,3.56496567]
[1769005639098,0.80910261,2971.2,2969.5,3.56496567]
[1769005639299,3.86969753,2971.3,2969.5,3.56496567]
[1769005639604,0.81331122,2971.2,2969.5,3.56496567]
[1769005639908,3.86969753,2971.3,2969.5,3.56496567]
[1769005640108,0.81331276,2971.2,2969.5,3.56496567]
[1769005640302,3.86969753,2971.3,2969.5,3.56496567]
[1769005640501,0.81328316,2971.2,2969.5,3.56496567]
[1769005640696,3.86969753,2971.3,2969.5,3.56496567]
[1769005640901,0.81326017,2971.2,2969.5,3.56496567]
[1769005641101,3.86969753,2971.3,2969.5,3.56496567]
[1769005641301,0.81325113,2971.2,2969.5,3.56496567]
[1769005641605,0.81326756,2971.1,2969.5,3.56496567]
[1769005641807,3.86969753,2971.3,2969.5,3.56496567]
[1769005642007,0.81326767,2971.2,2969.5,3.56496567]
[1769005642203,0.00504685,2971.4,2969.3,0.00236097]
[1769005642204,3.70124753,2971.1,2969.3,0.00236097]
[1769005642505,0.16847,2970.9,2969.3,3.56732664]
[1769005642703,3.87473438,2971.4,2969.3,3.56732664]
[1769005642907,0.81325305,2971.3,2969.3,3.56732664]
[1769005643208,0.81325305,2971.2,2969.3,3.56732664]
[1769005643409,0.81325305,2971.1,2969.3,3.56732664]
[1769005643599,3.70629438,2971.4,2969.3,3.56732664]
[1769005643805,3.70124753,2971.2,2969.3,3.56732664]
[1769005644010,0.81012336,2971.1,2969.3,3.56732664]
[1769005644503,3.70124753,2970.7,2968.8,3.56496567]
[1769005644704,3.70124753,2970.0,2968.0,3.56496567]
[1769005644908,0.8102176,2969.9,2968.0,3.56496567]
[1769005645105,1.872,2969.8,2968.0,3.56496567]
[1769005645311,0.00504685,2969.2,2968.0,3.56496567]
[1769005645998,0.00816075,2969.2,2968.0,3.56865351]
[1769005649813,0.00816075,2969.2,2968.0,0.00368784]
[1769005651818,0.00816075,2969.2,2968.0,3.56865351]
[1769005652413,0.00816075,2969.2,2968.0,0.00368784]
[1769005654124,0.00816075,2969.2,2968.0,3.56865351]
[1769005655817,0.00816075,2969.2,2966.2,4.30556329]
[1769005655818,3.87797828,2969.2,2967.5,3.56496567]
[1769005656016,3.86982753,2969.0,2967.0,3.56496567]
[1769005656224,3.86983753,2968.8,2967.0,3.56496567]
[1769005656822,0.1686,2968.7,2967.0,3.56819149]
[1769005657127,3.86984753,2968.7,2967.0,0.00322582]
[1769005657329,1.873,2968.6,2967.0,0.00322582]
[1769005657519,0.16862,2968.3,2967.0,0.00322582]
[1769005657722,3.86986753,2968.3,2966.0,3.56496567]
[1769005658124,1.873,2968.6,2966.3,3.56496567]
[1769005658323,1.873,2968.6,2966.3,3.73369567]
[1769005658731,1.873,2968.5,2966.3,3.73730319]
[1769005658931,1.873,2968.6,2966.3,3.73730319]
[1769005659230,3.92002497,2968.6,2966.3,3.73730319]
[1769005659428,7.6212725,2968.6,2966.3,3.73730319]
[1769005659631,0.00505553,2967.7,2966.3,3.73730319]
[1769005660326,0.00505553,2967.7,2966.3,3.56857319]
[1769005664738,0.00505553,2967.7,2966.3,3.73730319]
[1769005665435,0.16859,2968.8,2966.5,3.74183992]
[1769005666041,3.91553867,2969.4,2967.0,3.57311992]
[1769005666331,0.16856,2969.4,2967.2,3.74179992]
[1769005666529,0.16856,2969.4,2967.8,0.00505553]
[1769005666530,0.00505553,2968.4,2967.8,0.00505553]
[1769005668535,0.00505553,2968.4,2967.2,3.57311992]
[1769005671532,0.0031139,2969.2,2967.2,3.74179992]
[1769005671727,0.0031139,2969.2,2966.7,2.33868201]
[1769005671728,0.0031139,2969.2,2967.8,0.16865]
[1769005671937,0.0031139,2969.2,2967.9,3.57311992]
[1769005672232,0.0031139,2969.2,2967.9,3.74175992]
[1769005672435,5.79400364,2970.1,2967.9,3.74175992]
[1769005672635,5.79400364,2970.6,2968.1,3.74174992]
[1769005672836,0.79783096,2970.5,2968.2,3.57311992]
[1769005673038,5.79400364,2970.6,2968.2,3.74173992]
[1769005673240,0.79829229,2970.5,2968.3,3.57311992]
[1769005673440,0.00304315,2970.5,2968.3,3.57311992]
[1769005674133,0.00304315,2970.5,2968.4,3.57311992]
[1769005674330,0.00304315,2970.5,2968.4,3.57580347]
[1769005674534,0.17153315,2970.5,2968.4,3.57580347]
[1769005675740,3.91851182,2970.5,2968.4,3.57580347]
[1769005676437,2.04702497,2970.1,2968.4,3.57580347]
[1769005676644,3.74697867,2970.0,2968.4,0.00268355]
[1769005676843,3.74697867,2970.0,2969.0,0.00505553]
[1769005677036,3.74697867,2970.0,2968.4,0.00268355]
[1769005677237,0.00505553,2969.5,2968.4,0.00268355]
[1769005677637,0.00505553,2969.5,2967.9,3.57311992]
[1769005678843,0.00505553,2969.5,2967.9,3.57627614]
[1769005680338,3.75147896,2969.0,2967.1,1.76138516]
[1769005680538,3.75148896,2968.9,2966.9,5.1486819]
[1769005680836,2.04702497,2968.6,2966.9,3.38729674]
[1769005681454,2.04702497,2968.6,2966.9,3.3911494]
[1769005682148,1.873,2968.7,2966.9,3.3911494]
[1769005683046,2.04702497,2968.6,2966.9,3.3911494]
[1769005683651,5.62992393,2968.6,2966.9,3.3911494]
[1769005683847,3.58289896,2968.5,2966.9,0.00385266]
[1769005684054,3.75150896,2968.5,2966.9,0.00385266]
[1769005684252,2.04702497,2968.6,2966.9,0.00385266]